fUSD/lending_fUSD_20250514
["ID","MTS","AMOUNT","RATE_DAILY","PERIOD"]
[361017267,1747205916195,-537.6845,0.00046575,30]
[361017268,1747205916222,-200.0,0.00046575,30]
[361017269,1747205916251,-557.5788265,0.00046575,30]
[361017270,1747205916281,-207.4,0.00046575,30]
[361017271,1747205916310,-578.20924308,0.00046575,30]
[361017272,1747205916338,-215.0738,0.00046575,30]
[361017273,1747205916369,-599.60298507,0.00046575,30]
[361017274,1747205916400,-223.0315306,0.00046575,30]
[361017275,1747205916431,-621.78829552,0.00046575,30]
[361017276,1747205916459,-1000.0,0.000466,120]
[361017277,1747205916488,-150.0,0.00046604,120]
[361017278,1747205916734,-293.88054847,0.00046625,30]
[361017279,1747205916765,-249.91751949,0.00046625,30]
[361017280,1747205916795,-150.0,0.00046625,30]
[361017281,1747205916826,-150.0,0.00046633,120]
[361017282,1747205916855,-150.0,0.00046636,30]
[361017283,1747205916886,-150.0,0.00046647,30]
[361017284,1747205916916,-150.0,0.00046669,30]
[361017285,1747205916945,-293.88054847,0.00046675,30]
[361017286,1747205916975,-249.91751949,0.00046675,30]
[361017287,1747205917007,-501.13,0.00046689,31]
[361017288,1747205917037,-150.0,0.00046697,30]
[361017289,1747205917071,-150.0,0.00046704,30]
[361017290,1747205917101,-150.0,0.00046719,30]
[361017291,1747205917132,-293.88054847,0.00046725,30]
[361017292,1747205917163,-249.91751949,0.00046725,30]
[361017293,1747205917193,-150.0,0.00046728,30]
[361017294,1747205917222,-150.0,0.00046732,30]
[361017295,1747205917252,-150.0,0.00046758,30]
[361017296,1747205917283,-293.88054847,0.00046775,30]
[361017297,1747205917313,-249.91751949,0.00046775,30]
[361017298,1747205917342,-150.0,0.00046789,30]
[361017299,1747205917370,-2499.77150354,0.000468,120]
[361017300,1747205917401,-381.09272,0.000468,120]
[361017301,1747205917431,-266.98106538,0.000468,120]
[361017302,1747205917460,-150.0,0.00046809,30]
[361017303,1747205917489,-150.0,0.00046819,30]
[361017304,1747205917518,-293.88054847,0.00046824,30]
[361017305,1747205917548,-249.91751949,0.00046824,30]
[361017306,1747205917578,-150.0,0.00046849,30]
[361017307,1747205917608,-150.0,0.00046849,30]
[361017308,1747205917638,-150.0,0.00046849,30]
[361017309,1747205917667,-150.0,0.00046849,30]
[361017310,1747205917698,-150.0,0.00046858,120]
[361017311,1747205917729,-293.88054847,0.00046874,30]
[361017312,1747205917760,-249.91751949,0.00046874,30]
[361017313,1747205917792,-150.0,0.0004688,30]
[361017314,1747205917823,-150.0,0.0004689,30]
[361017315,1747205917854,-2000.0,0.000469,120]
[361017316,1747205917886,-150.0,0.00046907,120]
[361017317,1747205917916,-150.0,0.00046909,30]
[361017318,1747205917947,-293.88054847,0.00046924,30]
[361017319,1747205917977,-249.91751949,0.00046924,30]
[361017320,1747205918008,-150.0,0.00046941,30]
[361017321,1747205918039,-150.0,0.00046951,120]
[361017322,1747205918072,-150.0,0.00046967,30]
[361017323,1747205918103,-150.0,0.00046971,30]
[361017324,1747205918134,-293.88054847,0.00046974,30]
[361017325,1747205918166,-249.91751949,0.00046974,30]
[361017326,1747205918196,-150.0,0.00046979,30]
[361017327,1747205918228,-437.0,0.00046986,120]
[361017328,1747205918261,-150.0,0.00046994,30]
[361017329,1747205918295,-50000.0,0.00047,47]
[361017330,1747205918325,-191.29346149,0.00047,120]
[361017331,1747205918355,-50000.0,0.00047,120]
[361017332,1747205918384,-1000.0,0.00047,120]
[361017333,1747205918412,-10000.0,0.00047,30]
[361017334,1747205918441,-10000.0,0.00047,30]
[361017335,1747205918469,-2000.0,0.00047,120]
[361017336,1747205918500,-400.0,0.00047,120]
[361017337,1747205918531,-31854.0,0.00047,120]
[361017338,1747205918561,-12354.37,0.00047,30]
[361017339,1747205918591,-231.0,0.00047,120]
[361017340,1747205918619,-218872.12329106,0.00047,120]
[361017341,1747205918649,-150.0,0.00047001,30]
[361017342,1747205918677,-293.88054847,0.00047024,30]
[361017343,1747205918706,-249.91751949,0.00047024,30]
[361017344,1747205918734,-150.0,0.0004703,30]
[361017345,1747205918761,-150.0,0.00047051,30]
[361017346,1747205918792,-150.0,0.00047062,30]
[361017347,1747205918821,-293.88054847,0.00047073,30]
[361017348,1747205918850,-249.91751949,0.00047073,30]
[361017349,1747205918879,-150.0,0.00047073,30]
[361017350,1747205918909,-293.88054847,0.00047123,30]
[361017351,1747205918938,-150.0,0.00047123,30]
[361017352,1747205918966,-249.91751949,0.00047123,30]
[361017353,1747205918994,-150.0,0.00047132,30]
[361017354,1747205919022,-150.0,0.00047139,30]
[361017355,1747205919053,-150.0,0.0004715,30]
[361017356,1747205919083,-293.88054847,0.00047173,30]
[361017357,1747205919113,-249.91751949,0.00047173,30]
[361017358,1747205919141,-150.0,0.00047184,30]
[361017359,1747205919169,-150.0,0.00047202,30]
[361017360,1747205919198,-150.0,0.00047213,30]
[361017361,1747205919226,-293.88054847,0.00047223,30]
[361017362,1747205919255,-249.91751949,0.00047223,30]
[361017363,1747205919286,-150.0,0.00047239,30]
[361017364,1747205919314,-150.0,0.00047245,30]
[361017365,1747205919343,-500.0,0.0004726,120]
[361017366,1747205919374,-150.0,0.00047268,120]
[361017367,1747205919404,-150.0,0.0004727,30]
[361017368,1747205919433,-293.88054847,0.00047273,30]
[361017369,1747205919461,-249.91751949,0.00047273,30]
[361017370,1747205919489,-150.0,0.00047284,30]
[361017371,1747205919521,-150.0,0.00047294,30]
[361017372,1747205919551,-160.0,0.000473,64]
[361017373,1747205919582,-160.0,0.000473,64]
[361017374,1747205919613,-150.0,0.00047306,30]
[361017375,1747205919644,-293.88054847,0.00047322,30]
[361017376,1747205919919,-249.91751949,0.00047322,30]
[361017377,1747205919950,-150.0,0.00047342,30]
[361017378,1747205919979,-150.0,0.00047367,30]
[361017379,1747205920008,-293.88054847,0.00047372,30]
[361017380,1747205920038,-249.91751949,0.00047372,30]
[361017381,1747205920068,-150.0,0.00047375,30]
[361017382,1747205920097,-150.0,0.00047391,30]
[361017383,1747205920126,-512.0,0.000474,30]
[361017384,1747205920155,-210.0,0.000474,30]
[361017385,1747205920183,-293.88054847,0.00047422,30]
[361017386,1747205920212,-249.91751949,0.00047422,30]
[361017387,1747205920243,-150.0,0.00047428,30]
[361017388,1747205920272,-150.0,0.00047429,30]
[361017389,1747205920301,-150.0,0.00047436,30]
[361017390,1747205920331,-150.0,0.00047456,30]
[361017391,1747205920361,-293.88054847,0.00047472,30]
[361017392,1747205920392,-249.91751949,0.00047472,30]
[361017393,1747205920422,-150.0,0.00047489,30]
[361017394,1747205920450,-150.0,0.00047498,30]
[361017395,1747205920479,-1179.47925449,0.000475,120]
[361017396,1747205920508,-1000.0,0.000475,120]
[361017397,1747205920538,-1098.82418495,0.000475,120]
[361017398,1747205920566,-150.0,0.00047511,30]
[361017399,1747205920595,-293.88054847,0.00047522,30]
[361017400,1747205920624,-249.91751949,0.00047522,30]
[361017401,1747205920653,-150.0,0.00047522,30]
[361017402,1747205920683,-150.0,0.00047536,30]
[361017403,1747205920714,-150.0,0.00047549,30]
[361017404,1747205920744,-293.88054847,0.00047572,30]
[361017405,1747205920774,-249.91751949,0.00047572,30]
[361017406,1747205920802,-150.0,0.00047574,30]
[361017407,1747205920832,-150.0,0.00047575,120]
[361017408,1747205920861,-259.35472,0.000476,120]
[361017409,1747205920890,-150.0,0.0004761,30]
[361017410,1747205920919,-150.0,0.00047617,30]
[361017411,1747205920947,-293.88054847,0.00047621,30]
[361017412,1747205920977,-249.91751949,0.00047621,30]
[361017413,1747205921006,-150.0,0.00047631,30]
[361017414,1747205921036,-150.0,0.00047667,120]
[361017415,1747205921065,-293.88054847,0.00047671,30]
[361017416,1747205921094,-150.0,0.00047671,30]
[361017417,1747205921125,-249.91751949,0.00047671,30]
[361017418,1747205921157,-150.0,0.00047671,30]
[361017419,1747205921184,-150.0,0.00047698,30]
[361017420,1747205921213,-150.0,0.0004772,30]
[361017421,1747205921242,-293.88054847,0.00047721,30]
[361017422,1747205921270,-249.91751949,0.00047721,30]
[361017423,1747205921300,-150.0,0.00047732,30]
[361017424,1747205921332,-150.0,0.00047751,30]
[361017425,1747205921362,-150.0,0.00047758,30]
[361017426,1747205921390,-293.88054847,0.00047771,30]
[361017427,1747205921419,-249.91751949,0.00047771,30]
[361017428,1747205921448,-150.0,0.00047779,30]
[361017429,1747205921479,-150.0,0.00047793,30]
[361017430,1747205921507,-1013.10099246,0.000478,110]
[361017431,1747205921539,-293.88054847,0.00047821,30]
[361017432,1747205921568,-249.91751949,0.00047821,30]
[361017433,1747205921598,-150.0,0.00047836,30]
[361017434,1747205921629,-150.0,0.00047854,30]
[361017435,1747205921660,-150.0,0.0004786,30]
[361017436,1747205921691,-150.0,0.00047865,30]
[361017437,1747205921723,-150.0,0.00047866,120]
[361017438,1747205921755,-70000.0,0.00047869,120]
[361017439,1747205921786,-293.88054847,0.0004787,30]
[361017440,1747205921818,-249.91751949,0.0004787,30]
[361017441,1747205921850,-150.0,0.00047872,30]
[361017442,1747205921881,-1637.38885421,0.000479,120]
[361017443,1747205921912,-150.0,0.00047906,30]
[361017444,1747205921942,-150.0,0.00047915,30]
[361017445,1747205921971,-293.88054847,0.0004792,30]
[361017446,1747205922002,-249.91751949,0.0004792,30]
[361017447,1747205922031,-150.0,0.00047941,30]
[361017448,1747205922061,-10108.8,0.00047941,117]
[361017449,1747205922091,-500.0,0.00047945,120]
[361017450,1747205922123,-2143.59438337,0.0004795,120]
[361017451,1747205922155,-2143.59438337,0.0004795,120]
[361017452,1747205922186,-2143.59438337,0.0004795,120]
[361017453,1747205922217,-2143.59438337,0.0004795,120]
[361017454,1747205922248,-2143.59438337,0.0004795,120]
[361017455,1747205922280,-2143.59438337,0.0004795,120]
[361017456,1747205922309,-2143.59438337,0.0004795,120]
[361017457,1747205922343,-2143.59438337,0.0004795,120]
[361017458,1747205922374,-2143.59438337,0.0004795,120]
[361017459,1747205922404,-2143.59438337,0.0004795,120]
[361017460,1747205922434,-2143.59438337,0.0004795,120]
[361017461,1747205922464,-2143.59438337,0.0004795,120]
[361017462,1747205922494,-2143.59438337,0.0004795,120]
[361017463,1747205922524,-2143.59438337,0.0004795,120]
[361017464,1747205922554,-2143.59438337,0.0004795,120]
[361017465,1747205922584,-2143.59438337,0.0004795,120]
[361017466,1747205922614,-2143.59438337,0.0004795,120]
[361017467,1747205922644,-2143.59438337,0.0004795,120]
[361017468,1747205922675,-2143.59438337,0.0004795,120]
[361017469,1747205922706,-2143.59,0.0004795,120]
[361017470,1747205922735,-2888.08051882,0.0004795,120]
[361017471,1747205922764,-2888.08051882,0.0004795,120]
[361017472,1747205922795,-2888.08051882,0.0004795,120]
[361017473,1747205922825,-2888.08051882,0.0004795,120]
[361017474,1747205922856,-2888.08051882,0.0004795,120]
[361017475,1747205922887,-2888.08051882,0.0004795,120]
[361017476,1747205922917,-2888.08051882,0.0004795,120]
[361017477,1747205922947,-2888.08051882,0.0004795,120]
[361017478,1747205922977,-2888.08051882,0.0004795,120]
[361017479,1747205923007,-2888.08051882,0.0004795,120]
[361017480,1747205923038,-2888.08051882,0.0004795,120]
[361017481,1747205923268,-2888.08051882,0.0004795,120]
[361017482,1747205923305,-2888.08051882,0.0004795,120]
[361017483,1747205923336,-2888.08051882,0.0004795,120]
[361017484,1747205923367,-2888.08051882,0.0004795,120]
[361017485,1747205923397,-2888.08051882,0.0004795,120]
[361017486,1747205923426,-2888.08051882,0.0004795,120]
[361017487,1747205923456,-2888.08051882,0.0004795,120]
[361017488,1747205923486,-2888.08051882,0.0004795,120]
[361017489,1747205923515,-2888.08,0.0004795,120]
[361017490,1747205923547,-995.9226497,0.0004795,120]
[361017491,1747205923576,-995.9226497,0.0004795,120]
[361017492,1747205923606,-995.9226497,0.0004795,120]
[361017493,1747205923638,-995.9226497,0.0004795,120]
[361017494,1747205923669,-995.9226497,0.0004795,120]
[361017495,1747205923701,-995.9226497,0.0004795,120]
[361017496,1747205923733,-995.9226497,0.0004795,120]
[361017497,1747205923764,-995.9226497,0.0004795,120]
[361017498,1747205923795,-995.9226497,0.0004795,120]
[361017499,1747205923827,-995.9226497,0.0004795,120]
[361017500,1747205923859,-995.9226497,0.0004795,120]
[361017501,1747205923890,-995.9226497,0.0004795,120]
[361017502,1747205923921,-995.9226497,0.0004795,120]
[361017503,1747205923951,-995.9226497,0.0004795,120]
[361017504,1747205923982,-995.9226497,0.0004795,120]
[361017505,1747205924012,-995.9226497,0.0004795,120]
[361017506,1747205924046,-995.9226497,0.0004795,120]
[361017507,1747205924081,-995.9226497,0.0004795,120]
[361017508,1747205924111,-995.9226497,0.0004795,120]
[361017509,1747205924143,-995.92,0.0004795,120]
[361017510,1747205924172,-293.88054847,0.0004797,30]
[361017511,1747205924201,-249.91751949,0.0004797,30]
[361017512,1747205924232,-150.0,0.0004797,30]
[361017513,1747205924262,-150.0,0.00047976,30]
[361017514,1747205924291,-3000.0,0.0004799,41]
[361017515,1747205924321,-150.0,0.00047992,30]
[361017516,1747205924350,-1000.0,0.00047999,120]
[361017517,1747205924382,-50000.0,0.00048,48]
[361017518,1747205924411,-6047.6713196,0.00048,120]
[361017519,1747205924440,-50000.0,0.00048,30]
[361017520,1747205924469,-50000.0,0.00048,120]
[361017521,1747205924498,-1500.0,0.00048,120]
[361017522,1747205924526,-1000.0,0.00048,120]
[361017523,1747205924555,-10000.0,0.00048,30]
[361017524,1747205924584,-10000.0,0.00048,30]
[361017525,1747205924613,-2000.0,0.00048,120]
[361017526,1747205924642,-2500.0,0.00048,120]
[361017527,1747205924670,-182.54670352,0.00048,120]
[361017528,1747205924701,-7719.8088302,0.00048,120]
[361017529,1747205924732,-2582.72094481,0.00048,120]
[361017530,1747205924764,-2468.7272021,0.00048,120]
[361017531,1747205924797,-201544.39331576,0.00048,60]
[361017532,1747205924827,-150.0,0.0004801,30]
[361017533,1747205924857,-150.0,0.00048017,30]
[361017534,1747205924886,-293.88054847,0.0004802,30]
[361017535,1747205924917,-249.91751949,0.0004802,30]
[361017536,1747205924946,-150.0,0.00048021,30]
[361017537,1747205924976,-150.0,0.00048036,30]
[361017538,1747205925005,-293.88054847,0.0004807,30]
[361017539,1747205925036,-249.91751949,0.0004807,30]
[361017540,1747205925067,-150.0,0.00048097,30]
[361017541,1747205925097,-150.0,0.00048102,30]
[361017542,1747205925128,-150.0,0.00048112,30]
[361017543,1747205925161,-293.88054847,0.00048119,30]
[361017544,1747205925193,-249.91751949,0.00048119,30]
[361017545,1747205925226,-150.0,0.00048141,30]
[361017546,1747205925259,-150.0,0.00048155,30]
[361017547,1747205925292,-150.0,0.00048158,30]
[361017548,1747205925323,-293.88054847,0.00048169,30]
[361017549,1747205925352,-249.91751949,0.00048169,30]
[361017550,1747205925381,-150.0,0.00048183,30]
[361017551,1747205925410,-169.52429632,0.00048192,30]
[361017552,1747205925440,-153.48335905,0.00048192,30]
[361017553,1747205925470,-150.65736669,0.00048192,30]
[361017554,1747205925500,-151.49579848,0.00048192,30]
[361017555,1747205925531,-179.98557032,0.00048192,30]
[361017556,1747205925561,-254.24897493,0.000482,120]
[361017557,1747205925593,-293.88054847,0.00048219,30]
[361017558,1747205925623,-150.0,0.00048219,30]
[361017559,1747205925654,-249.91751949,0.00048219,30]
[361017560,1747205925685,-150.0,0.00048232,30]
[361017561,1747205925717,-150.0,0.00048264,30]
[361017562,1747205925748,-293.88054847,0.00048269,30]
[361017563,1747205925778,-249.91751949,0.00048269,30]
[361017564,1747205925809,-150.0,0.00048277,30]
[361017565,1747205925839,-150.0,0.0004828,30]
[361017566,1747205925868,-150.0,0.000483,30]
[361017567,1747205925898,-160.0,0.000483,69]
[361017568,1747205925928,-160.0,0.000483,69]
[361017569,1747205925957,-293.88054847,0.00048319,30]
[361017570,1747205925986,-249.91751949,0.00048319,30]
[361017571,1747205926015,-150.0,0.00048329,30]
[361017572,1747205926044,-150.0,0.00048341,30]
[361017573,1747205926077,-150.0,0.00048345,30]
[361017574,1747205926107,-150.0,0.00048353,30]
[361017575,1747205926138,-293.88054847,0.00048369,30]
[361017576,1747205926169,-249.91751949,0.00048369,30]
[361017577,1747205926199,-150.0,0.00048376,30]
[361017578,1747205926230,-26631.79538552,0.000484,120]
[361017579,1747205926260,-150.0,0.00048402,30]
[361017580,1747205926290,-293.88054847,0.00048418,30]
[361017581,1747205926320,-249.91751949,0.00048418,30]
[361017582,1747205926349,-150.0,0.00048418,30]
[361017583,1747205926379,-150.0,0.00048426,30]
[361017584,1747205926408,-3000.0,0.0004844,46]
[361017585,1747205926439,-150.0,0.00048445,30]
[361017586,1747205926648,-150.0,0.00048463,30]
[361017587,1747205926713,-293.88054847,0.00048468,30]
[361017588,1747205926743,-249.91751949,0.00048468,30]
[361017589,1747205926774,-150.0,0.00048473,30]
[361017590,1747205926806,-150.0,0.00048474,120]
[361017591,1747205926836,-373.32448734,0.000485,120]
[361017592,1747205926866,-1000.0,0.000485,120]
[361017593,1747205926896,-1995.74654467,0.000485,120]
[361017594,1747205926927,-370.15121077,0.000485,120]
[361017595,1747205926958,-471.1910404,0.000485,90]
[361017596,1747205926988,-150.0,0.00048507,30]
[361017597,1747205927018,-293.88054847,0.00048518,30]
[361017598,1747205927049,-249.91751949,0.00048518,30]
[361017599,1747205927083,-150.0,0.00048524,30]
[361017600,1747205927114,-150.0,0.0004853,120]
[361017601,1747205927145,-150.0,0.00048536,30]
[361017602,1747205927176,-293.88054847,0.00048568,30]
[361017603,1747205927209,-249.91751949,0.00048568,30]
[361017604,1747205927241,-150.0,0.00048584,30]
[361017605,1747205927270,-150.0,0.00048587,30]
[361017606,1747205927298,-150.0,0.0004859,30]
[361017607,1747205927328,-150.0,0.00048593,30]
[361017608,1747205927358,-150.0,0.00048611,30]
[361017609,1747205927388,-293.88054847,0.00048618,30]
[361017610,1747205927428,-249.91751949,0.00048618,30]
[361017611,1747205927465,-500.0,0.0004863,120]
[361017612,1747205927502,-150.0,0.00048645,30]
[361017613,1747205927541,-293.88054847,0.00048667,30]
[361017614,1747205927579,-249.91751949,0.00048667,30]
[361017615,1747205927616,-150.0,0.00048668,30]
[361017616,1747205927654,-3000.0,0.0004869,41]
[361017617,1747205927692,-808077.88,0.0004869,120]
[361017618,1747205927729,-259.35472,0.000487,120]
[361017619,1747205927768,-150.0,0.00048706,30]
[361017620,1747205927807,-150.0,0.00048714,30]
[361017621,1747205927847,-293.88054847,0.00048717,30]
[361017622,1747205927884,-249.91751949,0.00048717,30]
[361017623,1747205927922,-150.0,0.00048735,30]
[361017624,1747205927975,-150.0,0.00048749,30]
[361017625,1747205928017,-293.88054847,0.00048767,30]
[361017626,1747205928059,-150.0,0.00048767,30]
[361017627,1747205928100,-249.91751949,0.00048767,30]
[361017628,1747205928140,-150.0,0.00048796,30]
[361017629,1747205928180,-50325.66611796,0.000488,120]
[361017630,1747205928219,-4821.35732485,0.00048809,120]
[361017631,1747205928258,-5000.0,0.00048809,120]
[361017632,1747205928296,-293.88054847,0.00048817,30]
[361017633,1747205928335,-249.91751949,0.00048817,30]
[361017634,1747205928373,-150.0,0.00048822,30]
[361017635,1747205928411,-150.0,0.00048828,30]
[361017636,1747205928450,-150.0,0.0004883,30]
[361017637,1747205928487,-150.0,0.00048834,30]
[361017638,1747205928526,-150.0,0.00048845,30]
[361017639,1747205928565,-3000.0,0.0004886,41]
[361017640,1747205928603,-293.88054847,0.00048867,30]
[361017641,1747205928642,-249.91751949,0.00048867,30]
[361017642,1747205928681,-150.0,0.00048867,30]
[361017643,1747205928725,-150.0,0.0004888,30]
[361017644,1747205928767,-437.0,0.00048886,120]
[361017645,1747205928806,-150.0,0.00048889,30]
[361017646,1747205928846,-200.0,0.00048903,120]
[361017647,1747205928885,-1138.95320731,0.00048904,120]
[361017648,1747205928954,-457.48545443,0.00048906,120]
[361017649,1747205929014,-457.48545443,0.00048908,120]
[361017650,1747205929077,-457.48545444,0.00048908,120]
[361017651,1747205929141,-868.23370438,0.00048909,120]
[361017652,1747205929203,-150.0,0.00048911,30]
[361017653,1747205929265,-868.23370438,0.00048912,120]
[361017654,1747205929340,-200.0,0.00048913,120]
[361017655,1747205929395,-457.48545444,0.00048914,120]
[361017656,1747205929448,-293.88054847,0.00048916,30]
[361017657,1747205929508,-249.91751949,0.00048916,30]
[361017658,1747205929573,-1224.5749212,0.00048917,120]
[361017659,1747205929635,-200.0,0.00048917,120]
[361017660,1747205929707,-1138.95320731,0.00048924,120]
[361017661,1747205929763,-457.48545444,0.00048928,120]
[361017662,1747205929822,-133195.63929865,0.00048928,120]
[361017663,1747205929881,-200.0,0.00048929,120]
[361017664,1747205929937,-200.0,0.00048933,120]
[361017665,1747205929993,-200.0,0.00048939,120]
[361017666,1747205930048,-457.48545443,0.0004894,120]
[361017667,1747205930105,-133195.63929865,0.0004895,120]
[361017668,1747205930157,-150.0,0.0004895,30]
[361017669,1747205930209,-1224.5749212,0.00048951,120]
[361017670,1747205930263,-150.0,0.00048954,30]
[361017671,1747205930315,-133195.63929865,0.00048963,120]
[361017672,1747205930369,-293.88054847,0.00048966,30]
[361017673,1747205930422,-249.91751949,0.00048966,30]
[361017674,1747205930474,-200.0,0.0004897,120]
[361017675,1747205930526,-868.23370438,0.00048972,120]
[361017676,1747205930577,-1138.95320731,0.0004899,120]
[361017677,1747205930628,-200.0,0.00048991,120]
[361017678,1747205930676,-150.0,0.00048992,30]
[361017679,1747205930726,-1224.5749212,0.00048996,120]
[361017680,1747205930777,-1000.0,0.00048999,120]
[361017681,1747205930830,-50000.0,0.00049,49]
[361017682,1747205930879,-590.94415564,0.00049,120]
[361017683,1747205930926,-244.33225499,0.00049,120]
[361017684,1747205930996,-1457702.90097851,0.00049,30]
[361017685,1747205947002,-231.28369723,0.00046575,30]
[361017686,1747205947041,-644.79446246,0.00046575,30]
[361017687,1747205947083,-239.84119403,0.00046575,30]
[361017688,1747205947124,-668.65185757,0.00046575,30]
[361017689,1747205947165,-248.71531821,0.00046575,30]
[361017690,1747205947206,-693.3919763,0.00046575,30]
[361017691,1747205947247,-191.69656492,0.00046575,30]
[361017692,1747205947287,-257.91778498,0.00046575,30]
[361017693,1747205947326,-267.46074303,0.00046575,30]
[361017694,1747205947364,-277.35679052,0.00046575,30]
[361017695,1747205947404,-287.61899177,0.00046575,30]
[361017696,1747205947442,-298.26089446,0.00046575,30]
[361017697,1747205947481,-309.29654756,0.00046575,30]
[361017698,1747205947518,-320.74051982,0.00046575,30]
[361017699,1747205947557,-200.0,0.00046575,30]
[361017700,1747205947597,-332.60791905,0.00046575,30]
[361017701,1747205947637,-207.4,0.00046575,30]
[361017702,1747205947676,-344.91441206,0.00046575,30]
[361017703,1747205947717,-215.0738,0.00046575,30]
[361017704,1747205947756,-357.6762453,0.00046575,30]
[361017705,1747205947796,-223.0315306,0.00046575,30]
[361017706,1747205947836,-370.91026638,0.00046575,30]
[361017707,1747205947876,-231.28369723,0.00046575,30]
[361017708,1747205947914,-384.63394623,0.00046575,30]
[361017709,1747205947954,-239.84119403,0.00046575,30]
[361017710,1747205947993,-398.86540225,0.00046575,30]
[361017711,1747205948032,-248.71531821,0.00046575,30]
[361017712,1747205948076,-257.91778498,0.00046575,30]
[361017713,1747205948115,-267.46074303,0.00046575,30]
[361017714,1747205948153,-277.35679052,0.00046575,30]
[361017715,1747205948194,-287.61899177,0.00046575,30]
[361017716,1747205948232,-298.26089446,0.00046575,30]
[361017717,1747205948278,-309.29654756,0.00046575,30]
[361017718,1747205948324,-320.74051982,0.00046575,30]
[361017719,1747205948365,-332.60791905,0.00046575,30]
[361017720,1747205948407,-344.91441206,0.00046575,30]
[361017721,1747205948447,-357.6762453,0.00046575,30]
[361017722,1747205948488,-370.91026638,0.00046575,30]
[361017723,1747205948528,-384.63394623,0.00046575,30]
[361017724,1747205948570,-398.86540225,0.00046575,30]
[361017725,1747205948611,-58517.06128293,0.00049,30]
[361017726,1747205948649,-15123.43300171,0.00049,120]
[361017727,1747205948689,-1805.0,0.00049,30]
[361017728,1747205948728,-1356.17302078,0.00049,30]
[361017729,1747205948768,-1117.0,0.00049,30]
[361017730,1747205948810,-301.17367008,0.00049,120]
[361017731,1747205948847,-4082.9806534,0.00049,120]
[361017732,1747205948887,-1000.0,0.00049,120]
[361017733,1747205948926,-30037.50717232,0.00049,60]
[361017734,1747205948966,-1500.0,0.00049,120]
[361017735,1747205949006,-10000.0,0.00049,120]
[361017736,1747205949048,-979.80503672,0.00049,30]
[361017737,1747205949090,-31854.0,0.00049,120]
[361017738,1747205949130,-170.30299273,0.00049,120]
[361017739,1747205949171,-152.20335293,0.00049,30]
[361017740,1747205949213,-296.21478526,0.00049,120]
[361017741,1747205949253,-125121.97734702,0.00049,120]
[361017742,1747205949290,-2183.0,0.00049,120]
[361017743,1747205949330,-150.0,0.00049,30]
[361017744,1747205949377,-793.67573362,0.00049008,30]
[361017745,1747205949422,-150.0,0.00049011,30]
[361017746,1747205949461,-248.0,0.00049015,30]
[361017747,1747205949500,-293.88054847,0.00049016,30]
[361017748,1747205949544,-249.91751949,0.00049016,30]
[361017749,1747205949586,-150.0,0.00049025,30]
[361017750,1747205949624,-150.0,0.00049055,30]
[361017751,1747205949667,-293.88054847,0.00049066,30]
[361017752,1747205949708,-249.91751949,0.00049066,30]
[361017753,1747205949748,-150.0,0.00049071,30]
[361017754,1747205949785,-150.0,0.00049072,30]
[361017755,1747205949825,-150.0,0.00049074,30]
[361017756,1747205949865,-150.0,0.0004908,30]
[361017757,1747205949908,-16312.61359617,0.0004911,120]
[361017758,1747205949949,-293.88054847,0.00049116,30]
[361017759,1747205949988,-249.91751949,0.00049116,30]
[361017760,1747205950027,-150.0,0.00049132,30]
[361017761,1747205950068,-150.0,0.00049153,30]
[361017762,1747205950107,-293.88054847,0.00049166,30]
[361017763,1747205950147,-249.91751949,0.00049166,30]
[361017764,1747205950187,-150.0,0.0004917,30]
[361017765,1747205950226,-150.0,0.00049193,30]
[361017766,1747205950264,-150.0,0.00049195,30]